[Event "RUS-chT Premier 2019"]
[Site "Sochi"]
[Date "2019.05.07"]
[Round "6.20"]
[White "Kamsky, Gata"]
[Black "Duzhakov, Ilya"]
[Result "1-0"]
[ECO "B23"]
[WhiteElo "2664"]
[BlackElo "2388"]
[Annotator "ChessBase"]
[PlyCount "87"]
[EventDate "2019.05.01"]
[EventType "team-tourn"]
[EventCountry "RUS"]
[SourceTitle "playchess.com"]
[Source "ChessBase"]
[SourceQuality "1"]
[TimeControl "40/5400+30:1800+30"]

1. e4 c5 2. Nc3 {[%emt 0:00:14]} a6 {[%emt 0:00:00]} 3. Nf3 {[%emt 0:02:37]} d6 {[%emt 0:00:00]} 4. Bc4 {[%emt 0:02:37]} e6 {[%emt 0:02:24]} 5. a3 {[%emt 0:00:10]} Nf6 {[%emt 0:00:22]} 6. Ba2 {[%emt 0:00:17]} Be7 {[%emt 0:06:21]} 7. O-O {[%emt 0:00:16]} O-O {[%emt 0:09:45]} 8. d3 {[%emt 0:00:28]} Nc6 {[%emt 0:02:40]} 9. h3 {[%emt 0:00:28]} b5 {[%emt 0:01:19]} 10. Re1 {[%emt 0:00:43]} h6 {[%emt 0:04:50]} 11. Ne2 {[%emt 0:01:43]} Re8 {[%emt 0:03:28]} 12. Ng3 {[%emt 0:00:25]} Bf8 {[%emt 0:01:04]} 13. c3 {[%emt 0:00:08]} g6 {[%emt 0:10:01]} 14. d4 {[%emt 0:00:13]} c4 {[%emt 0:01:01]} 15. Be3 {[%emt 0:04:03]} Bb7 {[%emt 0:03:20]} 16. Qd2 {[%emt 0:00:13]} Kh7 {[%emt 0:00:21]} 17. Rad1 {[%emt 0:00:07]} Qc7 {[%emt 0:04:14]} 18. Nh2 {[%emt 0:01:33]} Ne7 {[%emt 0:04:34]} 19. Bb1 {[%emt 0:01:18]} Nfg8 {[%emt 0:17:02]} 20. h4 {[%emt 0:01:04]} e5 {[%emt 0:03:47]} 21. f4 {[%emt 0:00:54]} Bg7 {[%emt 0:03:03]} 22. Nf3 {[%emt 0:04:09]} Nc6 {[%emt 0:05:26]} 23. fxe5 {[%emt 0:12:11]} dxe5 {[%emt 0:00:19]} 24. d5 {[%emt 0:00:04]} Nb8 {[%emt 0:00:53]} 25. Rf1 {[%emt 0:02:59]} Bc8 {[%emt 0:03:07]} 26. Nh2 {[%emt 0:00:20]} a5 {[%emt 0:04:42]} 27. a4 {[%emt 0:02:41]} bxa4 {[%emt 0:01:02]} 28. Bc2 {[%emt 0:00:07]} Ra6 {[%emt 0:02:16]} 29. Bxa4 {[%emt 0:00:14]} Rd8 {[%emt 0:00:04]} 30. Bb5 {[%emt 0:02:17]} Rad6 {[%emt 0:01:53]} 31. Qe2 {[%emt 0:00:26]} Ba6 {[%emt 0:00:31]} 32. Bxa6 {[%emt 0:00:40]} Nxa6 {[%emt 0:00:03]} 33. Ra1 {[%emt 0:01:26]} Rc8 {[%emt 0:03:39]} 34. Ra4 {[%emt 0:01:08]} Bf6 {[%emt 0:00:09]} 35. h5 {[%emt 0:00:58]} Bd8 {[%emt 0:02:09]} 36. Ng4 {[%emt 0:02:56]} Qe7 {[%emt 0:00:41]} 37. Qf3 {[%emt 0:04:57]} Rc7 {[%emt 0:01:18]} 38. Rxa5 {[%emt 0:01:03]} Rb7 {[%emt 0:00:11]} 39. Ra4 {[%emt 0:00:18]} Bb6 {[%emt 0:00:44]} 40. Rxc4 {[%emt 0:00:00]} Bxe3+ {[%emt 0:00:00]} 41. Qxe3 {[%emt 0:01:45]} Rxb2 {[%emt 0:04:00]} 42. Rc8 {[%emt 0:02:25]} gxh5 {[%emt 0:08:39]} 43. Nf5 {[%emt 0:00:25]} Qd7 {[%emt 0:00:41]} 44. Nxd6 {[%emt 0:00:16]} 1-0

[Event "RUS-chT Premier 2019"]
[Site "Sochi"]
[Date "2019.05.07"]
[Round "6.21"]
[White "Vlasenko, Miroslav"]
[Black "Timofeev, Artyom"]
[Result "0-1"]
[ECO "A50"]
[WhiteElo "2424"]
[BlackElo "2602"]
[Annotator "ChessBase"]
[PlyCount "86"]
[EventDate "2019.05.01"]
[EventType "team-tourn"]
[EventCountry "RUS"]
[SourceTitle "playchess.com"]
[Source "ChessBase"]
[SourceQuality "1"]
[TimeControl "40/5400+30:1800+30"]

1. d4 {[%emt 0:00:00]} Nf6 {[%emt 0:00:00]} 2. c4 {[%emt 0:00:00]} g6 {[%emt 0:00:00]} 3. f3 {[%emt 0:00:00]} e6 {[%emt 0:08:54]} 4. e4 {[%emt 0:00:44]} d5 {[%emt 0:00:06]} 5. Nc3 {[%emt 0:00:25]} dxe4 {[%emt 0:04:04]} 6. fxe4 {[%emt 0:00:19]} c5 {[%emt 0:00:07]} 7. Bg5 {[%emt 0:29:31]} h6 {[%emt 0:03:14]} 8. Bxf6 {[%emt 0:00:54]} Qxf6 {[%emt 0:00:06]} 9. e5 {[%emt 0:02:19]} Qh4+ {[%emt 0:12:33]} 10. g3 {[%emt 0:00:13]} Qxd4 {[%emt 0:00:04]} 11. Qe2 {[%emt 0:01:23]} Bg7 {[%emt 0:03:57]} 12. Nf3 {[%emt 0:04:44]} Qd8 {[%emt 0:00:32]} 13. Rd1 {[%emt 0:14:04]} Bd7 {[%emt 0:10:57]} 14. Bg2 {[%emt 0:07:49]} Qe7 {[%emt 0:03:14]} 15. Ne4 {[%emt 0:05:05]} O-O {[%emt 0:00:14]} 16. O-O {[%emt 0:09:31]} Be8 {[%emt 0:21:28]} 17. Nf6+ {[%emt 0:05:13]} Kh8 {[%emt 0:00:43]} 18. g4 {[%emt 0:07:32]} Nc6 {[%emt 0:01:29]} 19. g5 {[%emt 0:00:27]} Rd8 {[%emt 0:01:49]} 20. gxh6 {[%emt 0:01:05]} Bxh6 {[%emt 0:00:51]} 21. Qe4 {[%emt 0:02:42]} Kg7 {[%emt 0:02:12]} 22. Rde1 {[%emt 0:01:02]} Nd4 {[%emt 0:00:47]} 23. Nh4 {[%emt 0:00:58]} Bg5 {[%emt 0:05:22]} 24. Qg4 {[%emt 0:00:42]} Bxh4 {[%emt 0:01:25]} 25. Qxh4 {[%emt 0:01:07]} Rh8 {[%emt 0:00:09]} 26. Qg5 {[%emt 0:00:53]} Nf5 {[%emt 0:00:45]} 27. Be4 {[%emt 0:00:44]} Kf8 {[%emt 0:02:26]} 28. Rd1 {[%emt 0:00:53]} Rd4 {[%emt 0:03:34]} 29. h4 {[%emt 0:01:47]} Bc6 {[%emt 0:00:42]} 30. Rxd4 {[%emt 0:01:55]} cxd4 {[%emt 0:00:17]} 31. Bxf5 {[%emt 0:00:46]} exf5 {[%emt 0:00:45]} 32. Qf4 {[%emt 0:00:11]} Qc5 {[%emt 0:04:15]} 33. Rd1 {[%emt 0:00:43]} Qxc4 {[%emt 0:02:11]} 34. Rxd4 {[%emt 0:00:14]} Qe2 {[%emt 0:00:45]} 35. Qg3 {[%emt 0:00:54]} Kg7 {[%emt 0:00:28]} 36. h5 {[%emt 0:00:11]} Bf3 {[%emt 0:04:02]} 37. Rd7 {[%emt 0:00:54]} Bxh5 {[%emt 0:01:37]} 38. Qb3 {[%emt 0:00:04]} Qe1+ {[%emt 0:01:43]} 39. Kg2 {[%emt 0:00:01]} Qe2+ {[%emt 0:00:12]} 40. Kg1 {[%emt 0:00:00]} Qe1+ {[%emt 0:00:00]} 41. Kg2 {[%emt 0:00:05]} Bf3+ {[%emt 0:02:12]} 42. Qxf3 {[%emt 0:00:05]} Qh1+ {[%emt 0:00:12]} 43. Kf2 {[%emt 0:00:05]} Rh2+ {[%emt 0:00:19]} 0-1

[Event "RUS-chT Premier 2019"]
[Site "Sochi"]
[Date "2019.05.07"]
[Round "6.22"]
[White "Faizrakhmanov, Ramil"]
[Black "Lintchevski, Daniil"]
[Result "0-1"]
[ECO "D21"]
[WhiteElo "2438"]
[BlackElo "2525"]
[Annotator "ChessBase"]
[PlyCount "80"]
[EventDate "2019.05.01"]
[EventType "team-tourn"]
[EventCountry "RUS"]
[SourceTitle "playchess.com"]
[Source "ChessBase"]
[SourceQuality "1"]
[TimeControl "40/5400+30:1800+30"]

1. d4 {[%emt 0:00:00]} d5 {[%emt 0:00:00]} 2. c4 {[%emt 0:00:00]} dxc4 {[%emt 0:00:00]} 3. Nf3 {[%emt 0:00:25]} a6 {[%emt 0:00:00]} 4. e3 {[%emt 0:00:39]} Nf6 {[%emt 0:00:11]} 5. Bxc4 {[%emt 0:00:29]} e6 {[%emt 0:00:02]} 6. O-O {[%emt 0:01:22]} b5 {[%emt 0:00:02]} 7. Bb3 {[%emt 0:02:54]} Bb7 {[%emt 0:01:13]} 8. Nc3 {[%emt 0:01:51]} c5 {[%emt 0:06:39]} 9. e4 {[%emt 0:02:11]} cxd4 {[%emt 0:00:51]} 10. Nxd4 {[%emt 0:00:19]} Nc6 {[%emt 0:00:10]} 11. Nxc6 {[%emt 0:01:00]} Bxc6 {[%emt 0:03:21]} 12. Qe2 {[%emt 0:06:38]} Be7 {[%emt 0:03:16]} 13. Bg5 {[%emt 0:14:06]} Nd7 {[%emt 0:07:24]} 14. Bxe7 {[%emt 0:07:34]} Qxe7 {[%emt 0:00:28]} 15. a3 {[%emt 0:00:29]} O-O {[%emt 0:01:08]} 16. Rfd1 {[%emt 0:01:03]} Rfd8 {[%emt 0:04:16]} 17. Ba2 {[%emt 0:04:42]} b4 {[%emt 0:04:45]} 18. axb4 {[%emt 0:06:14]} Qxb4 {[%emt 0:00:05]} 19. Bc4 {[%emt 0:03:14]} Nc5 {[%emt 0:04:20]} 20. f3 {[%emt 0:01:22]} a5 {[%emt 0:03:31]} 21. Bb5 {[%emt 0:07:27]} Bxb5 {[%emt 0:07:08]} 22. Qxb5 {[%emt 0:00:46]} h5 {[%emt 0:05:27]} 23. Rxd8+ {[%emt 0:11:56]} Rxd8 {[%emt 0:00:05]} 24. h3 {[%emt 0:02:32]} Qxb5 {[%emt 0:11:17]} 25. Nxb5 {[%emt 0:00:07]} a4 {[%emt 0:00:05]} 26. Nc3 {[%emt 0:02:37]} Rd4 {[%emt 0:00:02]} 27. Rd1 {[%emt 0:03:27]} Rxd1+ {[%emt 0:03:20]} 28. Nxd1 {[%emt 0:00:11]} Nd3 {[%emt 0:00:03]} 29. Kf1 {[%emt 0:03:52]} Nxb2 {[%emt 0:01:06]} 30. Nc3 {[%emt 0:00:19]} h4 {[%emt 0:00:59]} 31. Ke2 {[%emt 0:01:40]} a3 {[%emt 0:09:37]} 32. Kd2 {[%emt 0:01:44]} g5 {[%emt 0:01:41]} 33. Kc2 {[%emt 0:02:20]} Nc4 {[%emt 0:00:05]} 34. Kd3 {[%emt 0:00:15]} Ne5+ {[%emt 0:00:03]} 35. Kc2 {[%emt 0:00:56]} Kg7 {[%emt 0:00:04]} 36. Nd1 {[%emt 0:02:23]} Nc4 {[%emt 0:01:46]} 37. Kb3 {[%emt 0:05:06]} Kf6 {[%emt 0:00:13]} 38. Nf2 {[%emt 0:02:18]} Ke5 {[%emt 0:01:15]} 39. Nd3+ {[%emt 0:01:07]} Kd4 {[%emt 0:00:09]} 40. Nb4 {[%emt 0:00:00]} Ne5 {[%emt 0:00:00]} 0-1

[Event "RUS-chT Premier 2019"]
[Site "Sochi"]
[Date "2019.05.07"]
[Round "6.23"]
[White "Levin, Evgeny A."]
[Black "Makhmutov, Rail"]
[Result "1/2-1/2"]
[ECO "D85"]
[WhiteElo "2516"]
[BlackElo "2390"]
[Annotator "ChessBase"]
[PlyCount "120"]
[EventDate "2019.05.01"]
[EventType "team-tourn"]
[EventCountry "RUS"]
[SourceTitle "playchess.com"]
[Source "ChessBase"]
[SourceQuality "1"]
[TimeControl "40/5400+30:1800+30"]

1. d4 {[%emt 0:00:00]} Nf6 {[%emt 0:00:00]} 2. Nf3 {[%emt 0:00:00]} g6 {[%emt 0:00:37]} 3. c4 {[%emt 0:02:28]} Bg7 {[%emt 0:00:12]} 4. Nc3 {[%emt 0:00:04]} d5 {[%emt 0:00:13]} 5. cxd5 {[%emt 0:00:59]} Nxd5 {[%emt 0:00:02]} 6. e4 {[%emt 0:00:41]} Nxc3 {[%emt 0:00:07]} 7. bxc3 {[%emt 0:00:05]} c5 {[%emt 0:00:15]} 8. Be3 {[%emt 0:00:14]} Qa5 {[%emt 0:00:29]} 9. Qd2 {[%emt 0:00:15]} O-O {[%emt 0:00:49]} 10. Rc1 {[%emt 0:00:27]} Bg4 {[%emt 0:00:49]} 11. Ng5 {[%emt 0:10:13]} cxd4 {[%emt 0:02:52]} 12. cxd4 {[%emt 0:00:12]} Nc6 {[%emt 0:03:30]} 13. Qxa5 {[%emt 0:17:50]} Nxa5 {[%emt 0:00:10]} 14. Bd3 {[%emt 0:04:35]} Nc6 {[%emt 0:20:18]} 15. h3 {[%emt 0:12:54]} Bc8 {[%emt 0:02:51]} 16. d5 {[%emt 0:13:24]} Nd4 {[%emt 0:20:23]} 17. Rc4 {[%emt 0:15:15]} Nb5 {[%emt 0:12:16]} 18. f4 {[%emt 0:09:10]} e5 {[%emt 0:10:32]} 19. dxe6 {[%emt 0:03:48]} f6 {[%emt 0:04:56]} 20. e7 {[%emt 0:04:09]} Re8 {[%emt 0:00:20]} 21. Nf3 {[%emt 0:01:13]} Rxe7 {[%emt 0:01:41]} 22. a4 {[%emt 0:01:06]} Nd6 {[%emt 0:00:44]} 23. Rd4 {[%emt 0:00:31]} Nf7 {[%emt 0:00:42]} 24. Kd2 {[%emt 0:00:47]} Bd7 {[%emt 0:01:00]} 25. Bb5 {[%emt 0:01:37]} Bxb5 {[%emt 0:07:20]} 26. axb5 {[%emt 0:00:04]} Bf8 {[%emt 0:00:46]} 27. Rc1 {[%emt 0:00:57]} Rae8 {[%emt 0:01:49]} 28. Kd3 {[%emt 0:00:26]} Nd6 {[%emt 0:02:06]} 29. Rxd6 {[%emt 0:00:26]} Rxe4 {[%emt 0:00:02]} 30. Bc5 {[%emt 0:00:34]} b6 {[%emt 0:00:16]} 31. Rxf6 {[%emt 0:00:34]} Bxc5 {[%emt 0:00:14]} 32. Ra1 {[%emt 0:00:31]} R8e7 {[%emt 0:03:09]} 33. Ne5 {[%emt 0:00:17]} Re3+ {[%emt 0:00:19]} 34. Kd2 {[%emt 0:00:38]} Kg7 {[%emt 0:00:34]} 35. Rc6 {[%emt 0:00:20]} Rb3 {[%emt 0:00:52]} 36. Rc8 {[%emt 0:00:44]} Rxb5 {[%emt 0:02:40]} 37. Kc3 {[%emt 0:00:25]} a5 {[%emt 0:00:34]} 38. Rd1 {[%emt 0:00:12]} Bb4+ {[%emt 0:01:08]} 39. Kc4 {[%emt 0:00:09]} Rc5+ {[%emt 0:00:47]} 40. Rxc5 {[%emt 0:00:00]} Bxc5 {[%emt 0:00:00]} 41. Kb5 {[%emt 0:01:10]} h5 {[%emt 0:14:52]} 42. g4 {[%emt 0:08:50]} h4 {[%emt 0:04:25]} 43. Nf3 {[%emt 0:07:12]} Be3 {[%emt 0:02:37]} 44. Nxh4 {[%emt 0:03:27]} Bxf4 {[%emt 0:00:55]} 45. Kxb6 {[%emt 0:00:17]} a4 {[%emt 0:02:20]} 46. Ra1 {[%emt 0:01:25]} Re3 {[%emt 0:01:21]} 47. Rxa4 {[%emt 0:02:54]} Bg5 {[%emt 0:01:06]} 48. Ng2 {[%emt 0:00:40]} Rxh3 {[%emt 0:00:13]} 49. Kc5 {[%emt 0:01:05]} Rg3 {[%emt 0:02:19]} 50. Ne1 {[%emt 0:01:17]} Be3+ {[%emt 0:01:05]} 51. Kd5 {[%emt 0:00:59]} Bf2 {[%emt 0:00:10]} 52. Nc2 {[%emt 0:00:29]} Kh6 {[%emt 0:00:33]} 53. Rf4 {[%emt 0:00:52]} Bg1 {[%emt 0:00:18]} 54. Nb4 {[%emt 0:01:12]} Kg5 {[%emt 0:00:22]} 55. Re4 {[%emt 0:00:17]} Rxg4 {[%emt 0:01:09]} 56. Rxg4+ {[%emt 0:00:24]} Kxg4 {[%emt 0:00:01]} 57. Ke4 {[%emt 0:00:15]} g5 {[%emt 0:00:07]} 58. Nd5 {[%emt 0:00:19]} Bc5 {[%emt 0:00:36]} 59. Nf6+ {[%emt 0:00:12]} Kh4 {[%emt 0:00:07]} 60. Kf5 {[%emt 0:00:58]} Bd4 {[%emt 0:01:08] Ke5} 1/2-1/2

[Event "RUS-chT Premier 2019"]
[Site "Sochi"]
[Date "2019.05.07"]
[Round "6.24"]
[White "Toropov, Pavel"]
[Black "Ionov, Sergey"]
[Result "1/2-1/2"]
[ECO "C11"]
[WhiteElo "2327"]
[BlackElo "2530"]
[Annotator "ChessBase"]
[PlyCount "96"]
[EventDate "2019.05.01"]
[EventType "team-tourn"]
[EventCountry "RUS"]
[SourceTitle "playchess.com"]
[Source "ChessBase"]
[SourceQuality "1"]
[TimeControl "40/5400+30:1800+30"]

1. e4 {[%emt 0:00:00]} e6 {[%emt 0:00:20]} 2. d4 {[%emt 0:00:00]} d5 {[%emt 0:00:06]} 3. Nc3 {[%emt 0:00:00]} Nf6 {[%emt 0:01:35]} 4. Bg5 {[%emt 0:00:00]} dxe4 {[%emt 0:01:56]} 5. Nxe4 {[%emt 0:00:09]} Nbd7 {[%emt 0:03:07]} 6. Nf3 {[%emt 0:00:38]} h6 {[%emt 0:00:22]} 7. Nxf6+ {[%emt 0:01:55]} Nxf6 {[%emt 0:00:05]} 8. Be3 {[%emt 0:04:49]} Bd6 {[%emt 0:05:57]} 9. Bd3 {[%emt 0:00:35]} O-O {[%emt 0:11:56]} 10. Qe2 {[%emt 0:00:11]} b6 {[%emt 0:02:12]} 11. O-O-O {[%emt 0:00:47]} Nd5 {[%emt 0:12:36]} 12. Bd2 {[%emt 0:11:56]} Nf4 {[%emt 0:01:21]} 13. Bxf4 {[%emt 0:00:05]} Bxf4+ {[%emt 0:00:06]} 14. Kb1 {[%emt 0:00:02]} Bb7 {[%emt 0:00:44]} 15. Be4 {[%emt 0:04:54]} Bxe4 {[%emt 0:04:29]} 16. Qxe4 {[%emt 0:00:01]} Qf6 {[%emt 0:02:01]} 17. Rd3 {[%emt 0:02:25]} Rad8 {[%emt 0:03:20]} 18. Rhd1 {[%emt 0:00:16]} Qf5 {[%emt 0:08:55]} 19. Qxf5 {[%emt 0:07:03]} exf5 {[%emt 0:00:21]} 20. c4 {[%emt 0:06:05]} Rfe8 {[%emt 0:04:25]} 21. d5 {[%emt 0:00:23]} Re2 {[%emt 0:08:39]} 22. g3 {[%emt 0:00:20]} Bg5 {[%emt 0:03:16]} 23. h4 {[%emt 0:01:25]} Bf6 {[%emt 0:00:14]} 24. R1d2 {[%emt 0:00:12]} Re4 {[%emt 0:07:01]} 25. b3 {[%emt 0:00:54]} Rde8 {[%emt 0:08:24]} 26. Kc2 {[%emt 0:00:01]} h5 {[%emt 0:01:43]} 27. Nd4 {[%emt 0:01:28]} f4 {[%emt 0:00:31]} 28. Nb5 {[%emt 0:01:35]} fxg3 {[%emt 0:01:30]} 29. fxg3 {[%emt 0:00:06]} Be5 {[%emt 0:00:25]} 30. d6 {[%emt 0:01:23]} cxd6 {[%emt 0:02:28]} 31. Nxd6 {[%emt 0:00:02]} Bxd6 {[%emt 0:00:12]} 32. Rxd6 {[%emt 0:00:01]} Rg4 {[%emt 0:02:11]} 33. R6d3 {[%emt 0:01:48]} g6 {[%emt 0:01:01]} 34. Rc3 {[%emt 0:01:29]} Kf8 {[%emt 0:02:25]} 35. b4 {[%emt 0:00:22]} g5 {[%emt 0:00:38]} 36. hxg5 Rxg5 {[%emt 0:00:01]} 37. Rf3 {[%emt 0:04:43]} Re7 {[%emt 0:00:45]} 38. Kb3 {[%emt 0:00:04]} Rg4 {[%emt 0:00:40]} 39. Rd8+ {[%emt 0:03:00]} Kg7 {[%emt 0:00:18]} 40. Rd5 {[%emt 0:00:00]} h4 {[%emt 0:00:00]} 41. gxh4 {[%emt 0:00:05]} Rxh4 {[%emt 0:00:59]} 42. a4 {[%emt 0:00:25]} Rc7 {[%emt 0:08:59]} 43. Rc3 {[%emt 0:00:40]} Rh1 {[%emt 0:00:57]} 44. a5 {[%emt 0:01:01]} Rb1+ {[%emt 0:06:25]} 45. Ka4 {[%emt 0:01:39]} Ra1+ {[%emt 0:00:57]} 46. Kb5 {[%emt 0:01:59]} bxa5 {[%emt 0:00:07]} 47. bxa5 {[%emt 0:00:05]} Rb1+ {[%emt 0:00:18]} 48. Ka6 {[%emt 0:01:37]} Rc6+ {[%emt 0:00:08]} 1/2-1/2

[Event "RUS-chT Premier 2019"]
[Site "Sochi"]
[Date "2019.05.07"]
[Round "6.25"]
[White "Dreev, Aleksey"]
[Black "Iljiushenok, Ilia"]
[Result "1/2-1/2"]
[ECO "A49"]
[WhiteElo "2662"]
[BlackElo "2534"]
[Annotator "ChessBase"]
[PlyCount "90"]
[EventDate "2019.05.01"]
[EventType "team-tourn"]
[EventCountry "RUS"]
[SourceTitle "playchess.com"]
[Source "ChessBase"]
[SourceQuality "1"]
[TimeControl "40/5400+30:1800+30"]

1. d4 {[%emt 0:00:00]} Nf6 {[%emt 0:00:00]} 2. Nf3 {[%emt 0:00:00]} g6 {[%emt 0:00:00]} 3. g3 {[%emt 0:00:00]} Bg7 {[%emt 0:00:01]} 4. Bg2 {[%emt 0:00:00]} O-O {[%emt 0:00:07]} 5. O-O {[%emt 0:00:00]} d6 {[%emt 0:00:15]} 6. b3 {[%emt 0:00:14]} e5 {[%emt 0:00:07]} 7. dxe5 {[%emt 0:00:07]} dxe5 {[%emt 0:00:04]} 8. Ba3 {[%emt 0:00:13]} Qxd1 {[%emt 0:00:07]} 9. Rxd1 {[%emt 0:00:07]} Re8 {[%emt 0:00:04]} 10. Bb2 {[%emt 0:00:30]} e4 {[%emt 0:03:04]} 11. Ne5 {[%emt 0:02:06]} Ng4 {[%emt 0:26:12]} 12. Nc4 {[%emt 0:01:03]} Bxb2 {[%emt 0:00:30]} 13. Nxb2 {[%emt 0:00:07]} f5 {[%emt 0:01:56]} 14. Nc3 {[%emt 0:02:04]} Be6 {[%emt 0:03:01]} 15. h3 {[%emt 0:22:03]} Nf6 {[%emt 0:04:06]} 16. Nb5 {[%emt 0:01:19]} Na6 {[%emt 0:04:44]} 17. e3 {[%emt 0:00:37]} Re7 {[%emt 0:12:15]} 18. Bf1 {[%emt 0:02:27]} Nb4 {[%emt 0:02:03]} 19. Nd4 {[%emt 0:12:01]} Bd7 {[%emt 0:02:23]} 20. Na4 {[%emt 0:05:38]} b6 {[%emt 0:11:04]} 21. a3 {[%emt 0:01:53]} Nc6 {[%emt 0:00:29]} 22. Nb2 {[%emt 0:12:06]} Kf8 {[%emt 0:17:33]} 23. Kg2 {[%emt 0:06:48]} Ne5 {[%emt 0:04:19]} 24. Nc4 {[%emt 0:00:23]} c5 {[%emt 0:00:47]} 25. Nxe5 {[%emt 0:01:05]} Rxe5 {[%emt 0:00:01]} 26. Ne2 {[%emt 0:00:17]} Rd5 {[%emt 0:03:03]} 27. Nc3 {[%emt 0:04:12]} Rxd1 {[%emt 0:00:09]} 28. Rxd1 {[%emt 0:00:06]} Ke7 {[%emt 0:00:23]} 29. Be2 {[%emt 0:05:02]} Rd8 {[%emt 0:01:12]} 30. a4 {[%emt 0:08:50]} Be6 {[%emt 0:01:38]} 31. Rxd8 {[%emt 0:05:24]} Kxd8 {[%emt 0:00:01]} 32. g4 {[%emt 0:02:38]} fxg4 {[%emt 0:00:42]} 33. hxg4 {[%emt 0:00:05]} Nxg4 {[%emt 0:00:21]} 34. Ba6 {[%emt 0:04:02]} Bd7 {[%emt 0:02:36]} 35. Bb7 {[%emt 0:01:48]} Nf6 {[%emt 0:00:06]} 36. Nxe4 {[%emt 0:00:31]} Nxe4 {[%emt 0:00:18]} 37. Bxe4 {[%emt 0:00:02]} Ke7 {[%emt 0:00:40]} 38. f4 {[%emt 0:00:42]} Bf5 {[%emt 0:01:34]} 39. Bxf5 {[%emt 0:01:19]} gxf5 {[%emt 0:00:01]} 40. c4 {[%emt 0:00:00]} Kf6 {[%emt 0:00:00]} 41. Kg3 {[%emt 0:00:17]} h6 {[%emt 0:01:14]} 42. Kh4 {[%emt 0:00:14]} Kg6 {[%emt 0:00:04]} 43. Kg3 {[%emt 0:00:07]} Kf6 {[%emt 0:00:05]} 44. Kh4 {[%emt 0:00:04]} Kg6 {[%emt 0:00:04]} 45. Kg3 {[%emt 0:00:07]} Kf6 {[%emt 0:00:02]} 1/2-1/2

[Event "RUS-chT Premier 2019"]
[Site "Sochi"]
[Date "2019.05.07"]
[Round "6.26"]
[White "Nozdrachev, Vladislav"]
[Black "Zvjaginsev, Vadim"]
[Result "1/2-1/2"]
[ECO "B34"]
[WhiteElo "2489"]
[BlackElo "2635"]
[Annotator "ChessBase"]
[PlyCount "81"]
[EventDate "2019.05.01"]
[EventType "team-tourn"]
[EventCountry "RUS"]
[SourceTitle "playchess.com"]
[Source "ChessBase"]
[SourceQuality "1"]
[TimeControl "40/5400+30:1800+30"]

1. e4 {[%emt 0:00:00]} c5 {[%emt 0:00:00]} 2. Nf3 {[%emt 0:00:00]} Nc6 {[%emt 0:00:00]} 3. d4 {[%emt 0:00:00]} cxd4 {[%emt 0:00:00]} 4. Nxd4 {[%emt 0:00:00]} g6 {[%emt 0:00:15]} 5. Nc3 {[%emt 0:00:00]} Bg7 {[%emt 0:00:17]} 6. Nde2 {[%emt 0:00:08]} h5 {[%emt 0:03:07]} 7. Nf4 {[%emt 0:04:30]} Nf6 {[%emt 0:01:55]} 8. Bc4 {[%emt 0:00:52]} e6 {[%emt 0:01:55]} 9. O-O {[%emt 0:12:44]} O-O {[%emt 0:00:17]} 10. f3 {[%emt 0:06:42]} b6 {[%emt 0:12:32]} 11. Be3 {[%emt 0:13:58]} Na5 {[%emt 0:03:10]} 12. Be2 {[%emt 0:01:31]} d5 {[%emt 0:08:05]} 13. exd5 {[%emt 0:02:29]} exd5 {[%emt 0:01:18]} 14. Nfxd5 {[%emt 0:05:39]} Nxd5 {[%emt 0:06:36]} 15. Nxd5 {[%emt 0:01:52]} Bb7 {[%emt 0:00:28]} 16. Nc3 {[%emt 0:03:42]} Re8 {[%emt 0:09:45]} 17. Qxd8 {[%emt 0:03:59]} Raxd8 {[%emt 0:03:00]} 18. Kf2 {[%emt 0:00:06]} Rc8 {[%emt 0:04:12]} 19. Bb5 {[%emt 0:02:01]} Re5 {[%emt 0:05:39]} 20. a4 {[%emt 0:02:22]} Nc4 {[%emt 0:05:32]} 21. Bxc4 {[%emt 0:04:38]} Rxc4 {[%emt 0:01:38]} 22. Rfd1 {[%emt 0:00:06]} Re8 {[%emt 0:04:27]} 23. Rd3 {[%emt 0:00:44]} Bc8 {[%emt 0:00:57]} 24. a5 {[%emt 0:04:38]} Bf5 {[%emt 0:00:52]} 25. axb6 {[%emt 0:00:06]} axb6 {[%emt 0:00:57]} 26. Rd2 {[%emt 0:00:16]} Bxc3 {[%emt 0:07:03]} 27. bxc3 {[%emt 0:00:04]} Rxc3 {[%emt 0:00:04]} 28. Bxb6 {[%emt 0:00:19]} Rxc2 {[%emt 0:00:10]} 29. Rxc2 {[%emt 0:00:04]} Bxc2 {[%emt 0:00:04]} 30. Bd4 {[%emt 0:00:31]} Kh7 {[%emt 0:01:23]} 31. Kg3 {[%emt 0:01:33]} Rd8 {[%emt 0:04:30]} 32. Bc3 {[%emt 0:00:57]} Rc8 {[%emt 0:00:12]} 33. Ra3 {[%emt 0:00:07]} h4+ {[%emt 0:01:37]} 34. Kxh4 {[%emt 0:01:18]} Rc4+ {[%emt 0:00:05]} 35. Kg5 {[%emt 0:00:08]} Ra4 {[%emt 0:00:04]} 36. Rxa4 {[%emt 0:00:05]} Bxa4 {[%emt 0:00:03]} 37. Kf6 {[%emt 0:00:05]} Bb3 {[%emt 0:00:06]} 38. g4 {[%emt 0:00:06]} Bd1 {[%emt 0:00:13]} 39. Kxf7 {[%emt 0:00:07]} Bxf3 {[%emt 0:00:03]} 40. g5 {[%emt 0:00:00]} Bd1 {[%emt 0:00:00]} 41. h3 {[%emt 0:00:09]} 1/2-1/2